[Event "56th Ilmar Raud Memorial 2022"]
[Site "Viljandi"]
[Date "2022.07.05"]
[Round "2.1"]
[White "Laurusas, Tomas"]
[Black "Tobak, Mikhail"]
[Result "1-0"]
[ECO "A45"]
[WhiteElo "2561"]
[BlackElo "2307"]
[Annotator "TA"]
[PlyCount "57"]
[EventDate "2022.07.05"]
[EventType "swiss"]
[EventCountry "EST"]
[SourceTitle "playchess.com"]
[Source "ChessBase"]
[SourceQuality "1"]
[TimeControl "40/5400+30:900+30"]

{[%evp 9,57,14,15,0,34,33,36,38,39,20,35,-24,89,70,90,74,73,72,69,77,110,61,143,147,147,127,156,162,159,137,142,-27,-50,-141,-30,-46,210,208,295,308,287,202,253,141,510,493,561,544,793,764]} 1. d4 {[%emt 0:01:26]} d6 {[%emt 0:00:09]} 2. g3 {[%emt 0:04:16]} e5 {[%emt 0:03:24]} 3. Bg2 {[%emt 0:02:57]} Nf6 {[%emt 0:04:21]} 4. Nc3 {[%emt 0:05:57]} exd4 {[%emt 0:04:48]} 5. Qxd4 {[%emt 0:00:04]} Nc6 {[%emt 0:00:16] [#]} 6. Qd2 $146 {[%emt 0:00:06] A45: Trompowsky Attack.} ({Predecessor:} 6. Qd1 Be7 7. e4 O-O 8. h3 Re8 9. Nge2 Be6 10. O-O Qd7 11. Nf4 Bc4 12. Re1 {1-0 (41) Petran,P (2277)-Kopta,P (2303) Czech Republic 2013}) 6... g6 {[%emt 0:03:25]} 7. b3 {[%emt 0:09:28]} Bg7 {[%emt 0:10:20]} 8. Bb2 {[%emt 0:00:12] White is slightly better.} O-O {[%emt 0:00:21]} 9. e4 {[%emt 0:08:51]} Re8 {[%emt 0:03:43]} 10. Nge2 {[%emt 0:02:32] [#]} (10. O-O-O $1 $14) 10... Bg4 {[%emt 0:04:24]} (10... Nxe4 $1 $11 {keeps the balance.} 11. Bxe4 Rxe4 12. Nxe4 Bxb2) 11. O-O-O $16 {[%emt 0:07:24]} a5 {[%emt 0:02:00][%cal Oa5a4]} 12. a4 {[%emt 0:10:25]} Nb4 {[%emt 0:05:30][%cal Od6d5]} 13. f3 {[%emt 0:02:43]} Bd7 {[%emt 0:07:00][%cal Od6d5]} 14. Kb1 {[%emt 0:01:33]} Qb8 {[%emt 0:02:29]} 15. Nb5 {[%emt 0:03:18]} (15. Rhe1 $16) 15... Bxb5 {[%emt 0:15:03]} (15... Rd8 $14) 16. axb5 {[%emt 0:00:01]} Qa7 {[%emt 0:31:17]} 17. c3 {[%emt 0:06:26]} a4 {[%emt 0:00:00][%cal Oa4b3]} 18. cxb4 {[%emt 0:00:21] aiming for Bd4.} axb3 {[%emt 0:00:00][%cal Of6e4] Strongly threatening ...Nxe4!} 19. Nc3 {[%emt 0:00:18]} Nd7 {[%emt 0:00:00]} 20. Bf1 $2 {[%emt 0:10:36]} ({White should try} 20. f4 $1 $16) 20... Nb6 $11 {[%emt 0:00:00] Hoping for ...Rec8.} 21. Bd3 {[%emt 0:02:37] [#]} (21. Re1 $15) 21... d5 {[%emt 0:00:00]} (21... Rec8 $1 $17 {And now ...c5 would win.} 22. Rc1 c5 23. bxc6 bxc6) 22. Rhe1 {[%emt 0:03:44]} (22. exd5 {[#]} Nxd5 $1 {[%mdl 512]} 23. Na4 (23. Nxd5 $2 Qa1+ 24. Bxa1 Rxa1#) 23... Qxa4 24. Bxg7 Kxg7 25. Qb2+ Kg8 $19) 22... dxe4 $2 {[%emt 0:00:00][%mdl 8192]} (22... c6 $1 $15 {stays ahead.} 23. e5 Rxe5) 23. Rxe4 $18 {[%emt 0:00:01]} Red8 {[%emt 0:00:00]} (23... Rec8 $142 24. Bc4 Nxc4 25. Rxc4 c6 26. bxc6 Rxc6 27. Rxc6 bxc6) 24. Kc1 {[%emt 0:03:54]} c6 {[%emt 0:00:00]} 25. bxc6 {[%emt 0:00:59][%cal Bb5c6,Bc6b7][%mdl 32]} Rac8 {[%emt 0:00:00]} 26. Qg5 {[%emt 0:03:07]} ({White should play} 26. Qe2 $18) 26... h6 $2 {[%emt 0:00:00][%mdl 8192]} (26... Na4 $16 {is more resistant.} 27. c7 Rd6 28. Nxa4 Qxa4 29. Bxg7 Rxc7+ 30. Kd2 Rxd3+ 31. Kxd3 b2) 27. Qa5 {[%emt 0:00:29] White is clearly winning.} ({Weaker is} 27. Qe7 Nd5 28. Qxb7 (28. Nxd5 Rxd5 29. b5 Bxb2+ 30. Kxb2 Qa2+ 31. Kc3 bxc6 $11) 28... Qf2 $18) 27... Qxa5 {[%emt 0:00:00]} 28. bxa5 {[%emt 0:00:02]} Bxc3 {[%emt 0:00:00]} 29. cxb7 {[%emt 0:01:30] Weighted Error Value: White=0.28 (precise) /Black=0.76} 1-0

[Event "56th Ilmar Raud Memorial 2022"]
[Site "Viljandi"]
[Date "2022.07.05"]
[Round "2.2"]
[White "Sakalauskas, Vaidas"]
[Black "Kulaots, Kaido"]
[Result "1/2-1/2"]
[ECO "E35"]
[WhiteElo "2327"]
[BlackElo "2543"]
[Annotator "TA"]
[PlyCount "35"]
[EventDate "2022.07.05"]
[EventType "swiss"]
[EventCountry "EST"]
[SourceTitle "playchess.com"]
[Source "ChessBase"]
[SourceQuality "1"]
[TimeControl "40/5400+30:900+30"]

{[%evp 13,21,12,9,25,8,13,8,16,14,0]} 1. d4 {[%emt 0:00:14]} Nf6 {[%emt 0:00:29]} 2. c4 {[%emt 0:00:11]} e6 {[%emt 0:00:18]} 3. Nc3 {[%emt 0:00:32]} Bb4 {[%emt 0:00:17]} 4. Qc2 {[%emt 0:00:22]} d5 {[%emt 0:00:32]} 5. cxd5 {[%emt 0:00:35]} exd5 {[%emt 0:00:28]} 6. Bg5 {[%emt 0:00:42]} c5 {[%emt 0:00:34]} 7. dxc5 {[%emt 0:01:37]} h6 {[%emt 0:00:31]} 8. Bh4 {[%emt 0:00:53] E35: Nimzo-Indian: Classical: 4...d5 5 cxd5 exd5.} O-O {[%emt 0:01:26]} 9. e3 {[%emt 0:03:41] The position is equal.} Be6 {[%emt 0:01:59]} 10. Nf3 {[%emt 0:06:50]} Nbd7 {[%emt 0:02:20]} 11. a3 {[%emt 0:02:34] [#] An even fight not without its subleties.  Weighted Error Value: White=0.00 (flawless) /Black=0.00 (flawless)} {Predecessor:} Bxc3+ $146 12. Qxc3 g5 13. Bg3 Ne4 14. Qc2 Ndxc5 15. Be2 Rc8 16. Qd1 Qb6 17. b4 Nc3 18. bxc5 {½-½ (36) Xu,X (2564)-Ding,L (2799) Hangzhou 2022} 1/2-1/2

[Event "56th Ilmar Raud Memorial 2022"]
[Site "Viljandi"]
[Date "2022.07.05"]
[Round "2.3"]
[White "Pultinevicius, Paulius"]
[Black "Borsos, Bogdan"]
[Result "1-0"]
[ECO "C55"]
[WhiteElo "2539"]
[BlackElo "2173"]
[Annotator "TA"]
[PlyCount "101"]
[EventDate "2022.07.05"]
[EventType "swiss"]
[EventCountry "EST"]
[SourceTitle "playchess.com"]
[Source "ChessBase"]
[SourceQuality "1"]
[TimeControl "40/5400+30:900+30"]

{[%evp 9,101,32,40,23,34,30,21,24,30,32,31,24,38,14,11,5,19,16,12,16,32,35,32,33,35,1,20,0,22,0,20,17,29,8,15,0,0,0,0,0,0,0,0,0,0,0,0,0,0,0,0,0,0,0,0,0,16,0,0,0,0,0,0,0,4,4,29,15,66,6,27,23,139,140,134,128,204,191,342,309,455,440,518,507,496,505,608,597,578,569,872,876,29998,29999]} 1. e4 {[%emt 0:00:06]} e5 {[%emt 0:05:17]} 2. Nf3 {[%emt 0:00:06]} Nc6 {[%emt 0:01:08]} 3. Bc4 {[%emt 0:00:07]} Nf6 {[%emt 0:02:28]} 4. d3 {[%emt 0:00:36]} h6 {[%emt 0:07:30]} 5. c3 {[%emt 0:04:53]} Be7 {[%emt 0:03:36]} 6. Nbd2 {[%emt 0:04:46] C55: Two Knights: 4 d3, 4 d4 exd4 5 e5 and Max Lange Attack.} O-O {[%emt 0:00:17]} 7. O-O {[%emt 0:00:14]} a5 {[%emt 0:03:18]} 8. Bb3 {[%emt 0:04:38] The position is equal.} d6 {[%emt 0:05:45]} 9. Re1 {[%emt 0:00:33]} Nh7 {[%emt 0:10:12][%cal Bf6h7,Bh7g5,Bg5f3][%mdl 32]} 10. Nf1 {[%emt 0:03:59]} Ng5 {[%emt 0:01:33] [#]} 11. Ne3 $146 {[%emt 0:07:17]} ({Predecessor:} 11. Nxg5 Bxg5 12. Ng3 Bxc1 13. Rxc1 Qg5 14. d4 Ne7 15. Qh5 Qxh5 16. Nxh5 Bg4 17. Ng3 {1-0 (42) Atlas,D (2295)-Barrios,R (2160) Yerevan 1996}) 11... Nxf3+ {[%emt 0:00:36]} 12. Qxf3 {[%emt 0:00:04]} Bg5 {[%emt 0:00:14]} 13. a4 {[%emt 0:02:33]} Bxe3 {[%emt 0:00:37]} 14. Bxe3 {[%emt 0:00:12]} Be6 {[%emt 0:00:14]} 15. Bxe6 {[%emt 0:00:28]} fxe6 {[%emt 0:00:12]} 16. Qg4 {[%emt 0:00:05][%csl LRe6,LRh6]} Qf6 {[%emt 0:02:01]} 17. h4 {[%emt 0:02:16]} Kh7 {[%emt 0:01:13]} 18. h5 {[%emt 0:00:42]} Rf7 {[%emt 0:11:23]} 19. Rad1 {[%emt 0:09:42]} Rg8 {[%emt 0:00:19]} 20. Rf1 {[%emt 0:03:28]} g5 {[%emt 0:05:16]} 21. Rd2 {[%emt 0:14:33]} (21. hxg6+ $5 Rxg6 22. Qh5 $11) 21... Re8 {[%emt 0:03:53]} 22. d4 {[%emt 0:12:49]} exd4 {[%emt 0:03:58]} 23. cxd4 {[%emt 0:00:04]} e5 {[%emt 0:00:06][%cal Re5d4]} 24. d5 {[%emt 0:00:05]} Nb4 {[%emt 0:01:17]} 25. Rc1 {[%emt 0:01:09]} Qd8 {[%emt 0:04:25]} 26. b3 {[%emt 0:04:02]} Qd7 {[%emt 0:03:07]} 27. Qe2 {[%emt 0:00:51]} Ref8 {[%emt 0:03:10]} 28. Rdd1 {[%emt 0:02:29]} b6 {[%emt 0:06:51]} 29. Rc3 {[%emt 0:00:49]} Ra8 {[%emt 0:00:31]} 30. Rdc1 {[%emt 0:04:25]} Ra7 {[%emt 0:00:12]} 31. Kf1 {[%emt 0:12:32][%cal Bg1f1,Bf1e1,Be1f2,Bf2e2][%mdl 32]} Kg7 {[%emt 0:01:20]} 32. Ke1 {[%emt 0:00:51]} Kh7 {[%emt 0:02:59]} 33. f3 {[%emt 0:00:33]} Rg7 {[%emt 0:00:38]} 34. Kf2 {[%emt 0:01:57]} Qf7 {[%emt 0:00:56]} 35. Rh1 {[%emt 0:01:33]} Qd7 {[%emt 0:00:16]} 36. Qb5 {[%emt 0:00:32]} Rf7 {[%emt 0:00:43]} 37. Ke2 {[%emt 0:00:07]} Kg7 {[%emt 0:01:51]} 38. Rg1 {[%emt 0:00:25]} Na6 {[%emt 0:03:11]} (38... Ra8 $11) 39. Rc6 {[%emt 0:00:33] White is more active.} ({Better is} 39. Qxd7 $14 Rxd7 40. g3) 39... Nb4 {[%emt 0:00:10]} 40. Rc4 {[%emt 0:00:00]} Na6 {[%emt 0:00:00]} (40... Qd8 $11 {keeps the balance.}) 41. Qxd7 $16 {[%emt 0:01:59]} Rxd7 {[%emt 0:00:18]} 42. g3 $1 {[%emt 0:00:04]} Nc5 {[%emt 0:05:50] [#]} (42... Kh7 $16 {was worth a try.}) 43. f4 $1 $18 {[%emt 0:00:20]} Nxb3 $2 {[%emt 0:00:04] [#]} (43... exf4 44. gxf4 Ra8) 44. fxe5 $1 {[%emt 0:02:29]} ({Less strong is} 44. fxg5 hxg5 45. Rb1 (45. Bxg5 Nd4+ 46. Ke3 Rf7 $15) 45... Nc5 $11) 44... dxe5 {[%emt 0:00:40]} (44... Nc5 {is a better defense.} 45. e6 Rd8) 45. Rb1 {[%emt 0:00:38]} Nd4+ {[%emt 0:04:31]} 46. Bxd4 {[%emt 0:00:33]} exd4 {[%emt 0:00:05]} 47. Rc6 {[%emt 0:01:09]} Ra8 {[%emt 0:01:49]} 48. Rbc1 {[%emt 0:00:35]} Ra7 {[%emt 0:00:19]} 49. Rg6+ {[%emt 0:00:37]} Kf7 {[%emt 0:00:26]} 50. Rf1+ {[%emt 0:01:08]} Ke7 {[%emt 0:01:15]} 51. Re6+ {[%emt 0:00:05] Weighted Error Value: White=0.06 (flawless) /Black=0.34} 1-0

[Event "56th Ilmar Raud Memorial 2022"]
[Site "Viljandi"]
[Date "2022.07.05"]
[Round "2.4"]
[White "Sinitsina, Anastassia"]
[Black "Maiorov, Nikita"]
[Result "0-1"]
[ECO "C00"]
[WhiteElo "2175"]
[BlackElo "2474"]
[Annotator "TA"]
[PlyCount "76"]
[EventDate "2022.07.05"]
[EventType "swiss"]
[EventCountry "EST"]
[SourceTitle "playchess.com"]
[Source "ChessBase"]
[SourceQuality "1"]
[TimeControl "40/5400+30:900+30"]

{[%evp 21,76,-28,-19,-10,-15,-13,21,0,33,0,11,-6,-6,-17,23,0,49,40,45,43,32,39,19,25,31,-22,-24,-22,-19,-30,-30,-276,-238,-278,-127,-141,-138,-139,-116,-281,-273,-252,-258,-237,-183,-297,-199,-188,-192,-249,-234,-256,-231,-623,-623,-694,-650]} 1. e4 {[%emt 0:02:10]} c6 {[%emt 0:00:15]} 2. d3 {[%emt 0:01:11]} d5 {[%emt 1:31:15]} 3. Nd2 {[%emt 0:00:52]} e6 {[%emt 0:00:00]} 4. g3 {[%emt 0:01:16]} Nf6 {[%emt 0:00:00]} 5. Bg2 {[%emt 0:00:09]} Be7 {[%emt 0:00:00]} 6. Ngf3 {[%emt 0:00:08]} O-O {[%emt 0:00:00]} 7. O-O {[%emt 0:00:13]} c5 {[%emt 0:00:00]} 8. e5 {[%emt 0:05:49]} Nfd7 {[%emt 0:00:00]} 9. Re1 {[%emt 0:00:05]} Nc6 {[%emt 0:00:00]} 10. Nf1 {[%emt 0:00:05]} b5 {[%emt 0:00:00]} 11. h4 {[%emt 0:00:28]} a5 {[%emt 0:00:00]} 12. N1h2 {[%emt 0:01:13] [#] C00: French: Unusual White 2nd moves.} Ba6 $146 {[%emt 0:00:00]} ({Predecessor:} 12... Bb7 13. Ng4 Re8 14. c3 b4 15. h5 h6 16. Bxh6 gxh6 17. Qd2 a4 18. a3 Bf8 19. Nxh6+ Bxh6 20. Qxh6 {½-½ (35) Rubinas,P (2521)-Straka,Z (2566) ICCF email 2017}) 13. h5 {[%emt 0:03:16]} b4 {[%emt 0:00:00]} 14. Ng4 {[%emt 0:01:35] The position is equal.} a4 {[%emt 0:00:00]} 15. Bf4 {[%emt 0:05:05]} Nd4 {[%emt 0:00:00]} 16. Nxd4 {[%emt 0:13:52]} (16. h6 {is interesting.} g6 17. c4 Nxf3+ 18. Bxf3 Nb6 19. Rc1) 16... cxd4 {[%emt 0:00:00]} 17. b3 {[%emt 0:00:06]} Rc8 {[%emt 0:00:00]} 18. Nh2 {[%emt 0:01:36]} Rc6 {[%emt 0:00:00]} (18... h6 $11) 19. Nf3 {[%emt 0:00:22]} Qb6 {[%emt 0:00:00]} 20. h6 {[%emt 0:07:14] aiming for hxg7.} g6 {[%emt 0:00:00]} 21. Bg5 {[%emt 0:00:35]} Bxg5 {[%emt 0:00:00]} 22. Nxg5 {[%emt 0:00:05]} Qc7 {[%emt 0:00:00]} 23. Qd2 {[%emt 0:06:19]} (23. Qg4 $14) 23... Rxc2 $11 {[%emt 0:00:00]} (23... Nxe5 24. Qxb4 f6 25. Qxd4 $16) 24. Qxb4 {[%emt 0:00:05]} Nc5 {[%emt 0:00:00]} ({Don't take} 24... Bxd3 25. Qxa4 (25. Qxd4 Qc5 $15) 25... Rc8 26. Qxd4 $14) 25. Bf1 {[%emt 0:06:16]} Bxd3 {[%emt 0:00:00]} 26. Nxh7 $2 {[%emt 0:13:26]} Kxh7 $19 {[%emt 0:00:00] Really sharp!} 27. Bxd3 {[%emt 0:00:04] [#]} Rc3 {[%emt 0:00:00]} (27... Rxf2 $1 $19 {[%mdl 512] is more deadly. Threatens to win with ...Rf3.} 28. Rac1 Rf3 29. Qxd4 (29. Rxc5 $2 Qe7 $19) 29... Rxg3+ 30. Kf1 Rxd3 31. Qxd3 Nxd3 32. Rxc7 Nxe1 33. Kxe1 axb3 34. axb3 Kxh6) 28. Bf1 {[%emt 0:01:43]} axb3 {[%emt 0:01:08] ...b2 is the strong threat.} 29. Qxd4 {[%emt 0:01:19]} Rc2 {[%emt 0:02:31] Black is more active.} 30. Re2 $2 {[%emt 0:05:57]} (30. axb3 $17 Nxb3 31. Qb4) 30... Rxe2 {[%emt 0:03:02]} 31. Bxe2 {[%emt 0:00:07] [#]} Ra8 $1 {[%emt 0:02:50]} 32. a4 {[%emt 0:03:37]} Nd7 {[%emt 0:01:28]} 33. f4 {[%emt 0:00:53]} (33. Rb1 $142) 33... Qc5 {[%emt 0:00:28]} 34. Qxc5 {[%emt 0:00:16]} Nxc5 {[%emt 0:00:03]} 35. Bb5 {[%emt 0:00:27]} (35. a5 $142) 35... Kxh6 {[%emt 0:00:27]} ({Stronger than} 35... b2 36. Rb1 $17) 36. Kg2 {[%emt 0:00:24]} Kg7 {[%emt 0:01:48]} 37. Kf3 $2 {[%emt 0:00:35]} (37. a5) 37... Ne4 {[%emt 0:00:39]} 38. Bd3 {[%emt 0:00:26]} b2 {[%emt 0:00:43] Weighted Error Value: White=0.54/Black=0.18 (very precise)} 0-1

[Event "56th Ilmar Raud Memorial 2022"]
[Site "Viljandi"]
[Date "2022.07.05"]
[Round "2.5"]
[White "Miezis, Normunds"]
[Black "Rychagov, Nikita"]
[Result "1-0"]
[ECO "A09"]
[WhiteElo "2446"]
[BlackElo "2076"]
[Annotator "TA"]
[PlyCount "145"]
[EventDate "2022.07.05"]
[EventType "swiss"]
[EventCountry "EST"]
[SourceTitle "playchess.com"]
[Source "ChessBase"]
[SourceQuality "1"]
[TimeControl "40/5400+30:900+30"]

{[%evp 9,145,-22,-18,-22,-20,-37,1,-6,-3,-4,14,-10,0,0,-8,-15,0,-5,0,0,0,-7,8,0,-12,-32,-33,-39,-25,-43,-53,-79,-49,-54,-53,-41,-53,-85,-93,-86,-72,-93,-73,-79,0,0,0,-28,-29,-114,-90,-114,-42,-118,21,21,29,0,51,51,58,51,51,51,51,51,55,17,58,57,58,58,58,58,66,51,58,51,51,51,51,28,28,28,28,28,28,28,28,28,29,29,44,28,42,0,8,0,0,0,8,0,0,0,0,0,0,0,0,0,0,0,0,0,0,0,29993,29980,29980,29981,29981,29982,29982,29983,29983,29983,29984,29985,29985,29984,29984,29985,29986,29985,29989,29990,29994,29995]} 1. Nf3 {[%emt 0:00:28] Edouard,Romain} d5 {[%emt 0:00:06]} 2. c4 {[%emt 0:00:33]} d4 {[%emt 0:00:07]} 3. e3 {[%emt 0:00:42]} c5 {[%emt 0:00:09]} 4. exd4 {[%emt 0:02:47]} cxd4 {[%emt 0:00:02]} 5. Bd3 {[%emt 0:00:36]} Nc6 {[%emt 0:01:48]} 6. O-O {[%emt 0:00:21] A09: Réti Opening: 1 Nf3 d5 2 c4.} Nf6 {[%emt 0:03:06]} 7. Bc2 {[%emt 0:01:57] [#]} e6 $146 {[%emt 0:03:38]} ({Predecessor:} 7... Bg4 8. Ba4 Nd7 9. h3 Bh5 10. d3 e5 11. Re1 Be7 12. Nbd2 O-O 13. Ne4 Qc7 {1-0 (56) Aronian,L (2773)-Vidit,S (2726) Chess.com INT 2020 CBM 196 [Edouard,Romain]}) 8. d3 {[%emt 0:00:46] The position is equal.} Bd6 {[%emt 0:06:04]} 9. a3 {[%emt 0:00:38]} a5 {[%emt 0:00:07]} 10. Re1 {[%emt 0:01:21]} h6 {[%emt 0:01:24]} 11. Nbd2 {[%emt 0:00:39]} O-O {[%emt 0:00:17]} 12. Nf1 {[%emt 0:00:28]} Re8 {[%emt 0:06:24]} 13. Rb1 {[%emt 0:02:34]} e5 {[%emt 0:02:00]} 14. Ng3 {[%emt 0:00:13]} Qc7 {[%emt 0:09:43]} 15. h3 {[%emt 0:04:34]} Bd7 {[%emt 0:24:13]} 16. Bd2 {[%emt 0:00:43]} Ne7 {[%emt 0:03:07]} 17. b4 {[%emt 0:12:00]} axb4 {[%emt 0:00:02]} 18. axb4 {[%emt 0:00:17]} Ng6 {[%emt 0:00:09]} 19. Bb3 {[%emt 0:02:06]} b6 {[%emt 0:03:58]} 20. Rc1 {[%emt 0:02:24][%cal Oc4c5]} Bf8 {[%emt 0:00:56]} 21. Ra1 {[%emt 0:03:51]} Rxa1 {[%emt 0:03:42]} 22. Qxa1 {[%emt 0:00:29]} Bc6 {[%emt 0:02:53]} 23. Ne4 {[%emt 0:07:49]} Nxe4 {[%emt 0:00:51]} 24. dxe4 {[%emt 0:00:12]} Ra8 {[%emt 0:00:10]} 25. Qb1 {[%emt 0:01:10]} Ra3 {[%emt 0:03:19]} 26. h4 {[%emt 0:07:57]} h5 {[%emt 0:01:43]} (26... Be7 $17 27. g3 Nf8) 27. Ng5 $11 {[%emt 0:06:44][%cal Oc4c5]} Be7 {[%emt 0:01:10] Inhibits c5.} ({Don't play} 27... Nxh4 28. c5 Be8 29. Qd3 Rxb3 30. Qxb3 bxc5 31. bxc5 $14) 28. Bc1 {[%emt 0:12:31]} Ra7 {[%emt 0:00:41]} ({Don't do} 28... Nxh4 29. Bxa3 Bxg5 30. b5 $16) 29. Bd1 {[%emt 0:06:53]} (29. Bd2 $11 {remains equal.}) 29... Nxh4 {[%emt 0:03:20] White must now prevent ...Qd8.} 30. Bxh5 {[%emt 0:01:46]} Be8 {[%emt 0:00:26]} (30... f6 $17 31. Bf7+ Kh8) 31. Qb3 {[%emt 0:05:47] [#]} (31. g3 $15) 31... Bxg5 {[%emt 0:02:18]} (31... Ra1 $1 $17 {Threatens to win with ...Bxg5.} 32. Qb2 Qa7) 32. Bxg5 {[%emt 0:00:17]} Ng6 {[%emt 0:00:01]} 33. c5 {[%emt 0:02:35]} (33. Bxg6 $5 fxg6 34. Rc1 $11) 33... Nf4 {[%emt 0:01:05]} ({Black should try} 33... Nf8 $11) 34. Bxf4 $14 {[%emt 0:02:29]} exf4 {[%emt 0:00:01]} 35. Qd5 {[%emt 0:01:49]} bxc5 {[%emt 0:00:50]} 36. bxc5 {[%emt 0:00:11]} Ra5 {[%emt 0:01:50]} 37. Rc1 {[%emt 0:01:32]} d3 {[%emt 0:00:14][%cal Od3d2]} 38. Bf3 {[%emt 0:01:45]} d2 {[%emt 0:02:44]} 39. Qxd2 {[%emt 0:00:28][%cal Oc5c6]} Rxc5 {[%emt 0:00:04]} 40. Rxc5 {[%emt 0:00:00]} Qxc5 {[%emt 0:00:00]} 41. Qxf4 {[%emt 0:00:24][%mdl 4096] Endgame KQB-KQB} Bd7 {[%emt 0:00:37]} 42. e5 {[%emt 0:01:39]} Be6 {[%emt 0:01:58]} 43. g3 {[%emt 0:01:10]} Bd5 {[%emt 0:01:10]} 44. Bxd5 {[%emt 0:00:32]} Qxd5 {[%emt 0:00:02] KQ-KQ} 45. g4 {[%emt 0:00:27]} Qd1+ {[%emt 0:00:42]} 46. Kg2 {[%emt 0:00:19]} Qd5+ {[%emt 0:00:02]} 47. Kh2 {[%emt 0:00:32]} Qd3 {[%emt 0:02:22]} 48. Qe3 {[%emt 0:04:19]} Qd5 {[%emt 0:00:21]} 49. Kg3 {[%emt 0:00:17]} Qc4 {[%emt 0:00:16]} 50. f3 {[%emt 0:02:17][%cal Bf2f3,Bf3f4][%mdl 32]} Qb4 {[%emt 0:00:23]} 51. f4 {[%emt 0:00:19]} Kf8 {[%emt 0:04:54]} 52. f5 {[%emt 0:01:39]} Ke7 {[%emt 0:01:12]} 53. Qg5+ {[%emt 0:02:19]} Ke8 {[%emt 0:00:03]} 54. Qe3 {[%emt 0:01:03]} Kf8 {[%emt 0:00:46]} 55. f6 {[%emt 0:03:25]} gxf6 {[%emt 0:01:04]} 56. exf6 {[%emt 0:01:11] Strongly threatening Qe5.} Qd6+ {[%emt 0:00:51]} 57. Qf4 {[%emt 0:00:10]} Qd3+ {[%emt 0:00:38]} 58. Qf3 {[%emt 0:00:14]} Qd6+ {[%emt 0:00:05]} 59. Kh3 {[%emt 0:01:48]} Kg8 {[%emt 0:02:36]} 60. Qf5 {[%emt 0:01:26]} Qd2 {[%emt 0:03:16] Inhibits Qg5+.} 61. Qe5 {[%emt 0:01:22] Intending Qe8+ and mate.} Kh7 {[%emt 0:02:42]} 62. Kg3 {[%emt 0:00:43] Qe4+ would kill now.} Qa2 $2 {[%emt 0:05:29][%mdl 8192]} (62... Qh6 $11) 63. Qg5 {[%emt 0:01:41][%csl Gf6][%cal Rg5g7] White mates.} Qa3+ {[%emt 0:00:34] [#]} 64. Kh4 $1 {[%emt 0:00:12][%csl Gf6][%cal Rg5g7]} Qf8 {[%emt 0:00:24]} 65. Kh5 {[%emt 0:00:39]} Qh8 {[%emt 0:00:51]} 66. Qh6+ {[%emt 0:00:15]} Kg8 {[%emt 0:00:04]} 67. Qxh8+ {[%emt 0:00:12]} Kxh8 {[%emt 0:00:05] KPP-KP} 68. g5 {[%emt 0:01:05][%cal Bg4g5,Bg5g6][%mdl 32]} Kh7 {[%emt 0:00:54]} 69. Kg4 {[%emt 0:00:12]} Kg8 {[%emt 0:00:28]} 70. Kf4 {[%emt 0:00:21]} Kf8 {[%emt 0:00:05]} 71. Ke5 {[%emt 0:00:10]} Ke8 {[%emt 0:00:09]} 72. Kd6 {[%emt 0:00:10]} Kd8 {[%emt 0:00:05]} 73. g6 {[%emt 0:00:12] Weighted Error Value: White=0.13 (very precise) /Black=0.15 (very precise)} 1-0